bitfinex-derivatives/quotes_SOLF0:USTF0_20250923
["timestamp","ask_amount","ask_price","bid_price","bid_amount"]
[1758607881901,9.69018135,218.68,218.59,2.42018135]
[1758607882300,4.1128,218.67,218.61,2.42018135]
[1758607882804,4.1128,218.67,218.56,13.27511337]
[1758607883200,4.1135,218.64,218.56,7.42]
[1758607883402,7.27,218.63,218.51,13.27511337]
[1758607884211,4.1138,218.62,218.51,13.27511337]
[1758607884415,410.95367719,218.7,218.52,7.42]
[1758607884712,7.27,218.69,218.52,7.42]
[1758607885305,4.1131,218.66,218.52,4.1156]
[1758607885507,4.1131,218.66,218.53,7.42]
[1758607885711,4.1136,218.63,218.53,7.42]
[1758607885911,63.9898,218.63,218.53,7.42]
[1758607886112,7.27,218.64,218.53,7.42]
[1758607886411,7.27,218.66,218.53,11.5354]
[1758607886601,7.27,218.66,218.54,7.42]
[1758607886803,71.2521,218.66,218.54,7.42]
[1758607887208,4.1137,218.63,218.54,7.42]
[1758607888406,4.114,218.61,218.54,7.42]
[1758607888613,4.114,218.61,218.48,9.97141337]
[1758607888806,4.114,218.61,218.49,7.42]
[1758607889613,4.114,218.61,218.5,4.116]
[1758607889920,4.114,218.61,218.49,7.42]
[1758607891306,7.27,218.62,218.49,7.42]
[1758607891307,4.1144,218.59,218.49,7.42]
[1758607892507,4.1148,218.57,218.49,7.42]
[1758607894205,7.7,218.59,218.49,7.42]
[1758607894412,7.68,218.59,218.49,7.42]
[1758607894818,4.1148,218.57,218.49,7.42]
[1758607895705,7.68,218.59,218.43,69.90281337]
[1758607895706,4.1151,218.55,218.44,7.08]
[1758607896713,7.7,218.57,218.45,4.1169]
[1758607897116,7.7,218.57,218.46,7.08]
[1758607897317,4.1153,218.54,218.46,7.08]
[1758607897619,7.7,218.53,218.46,7.08]
[1758607899618,4.1157,218.52,218.46,7.08]
[1758607900717,4.1157,218.52,218.42,7.08]
[1758607901317,4.1161,218.5,218.42,7.08]
[1758607901617,11.8161,218.5,218.42,7.08]
[1758607902117,7.7,218.56,218.42,7.08]
[1758607902323,3.59988326,218.55,218.42,7.08]
[1758607902621,11.8149,218.56,218.45,11.1969]
[1758607902815,7.7,218.56,218.45,7.08]
[1758607903011,4.1142,218.6,218.49,4.1162]
[1758607903222,3.60013651,218.59,218.5,7.08]
[1758607903423,3.60013651,218.58,218.5,7.08]
[1758607903624,3.60013651,218.57,218.5,7.08]
[1758607903921,7.7,218.56,218.46,4.1166]
[1758607904721,7.7,218.56,218.48,2.41184391]
[1758607904915,7.7,218.56,218.48,13.60824391]
[1758607905616,2.41184391,218.59,218.51,9.49184391]
[1758607905820,3.6024068,218.58,218.51,9.49184391]
[1758607906013,4.1142,218.6,218.51,9.49184391]
[1758607906218,3.60273948,218.59,218.51,9.49184391]
[1758607906422,3.60273948,218.58,218.51,9.49184391]
[1758607906621,4.1142,218.6,218.51,9.49184391]
[1758607906817,3.60358773,218.59,218.51,9.49184391]
[1758607907024,3.60358773,218.58,218.51,9.49184391]
[1758607907226,4.1142,218.6,218.51,9.49184391]
[1758607907424,3.60494229,218.59,218.51,9.49184391]
[1758607907622,7.71944229,218.58,218.51,7.08]
[1758607907826,11.8145,218.58,218.51,7.08]
[1758607908125,3.60629807,218.57,218.51,7.08]
[1758607908321,11.8145,218.58,218.51,7.08]
[1758607908821,2.41184391,218.57,218.47,6.52834391]
[1758607909025,2.41184391,218.52,218.43,7.08]
[1758607909225,2.41184391,218.52,218.43,9.49184391]
[1758607909527,7.7,218.53,218.43,9.49184391]
[1758607910317,2.41184391,218.52,218.45,4.117]
[1758607910925,2.41184391,218.52,218.43,9.49184391]
[1758607911224,7.7,218.53,218.45,2.41184391]
[1758607911425,10.11184391,218.57,218.48,7.08]
[1758607911629,2.41184391,218.55,218.48,7.08]
[1758607911931,7.7,218.54,218.45,6.52864391]
[1758607912925,10.11184391,218.5,218.4,9.49184391]
[1758607913526,4.1162,218.49,218.4,9.49184391]
[1758607914327,64.014,218.55,218.4,9.49184391]
[1758607914627,11.31746613,218.54,218.44,7.08]
[1758607914827,3.61746613,218.53,218.44,7.08]
[1758607915028,7.7,218.54,218.44,7.08]
[1758607915225,3.61970434,218.53,218.44,7.08]
[1758607915426,7.7,218.54,218.44,7.08]
[1758607915732,3.61970434,218.53,218.44,7.08]
[1758607915925,4.1155,218.53,218.44,7.08]
[1758607916431,7.7,218.54,218.45,4.117]
[1758607916631,7.7,218.54,218.44,7.08]
[1758607917834,7.7,218.54,218.47,4.1166]
[1758607919330,11.8146,218.58,218.48,11.1962]
[1758607919522,3.631627,218.57,218.48,11.1962]
[1758607919727,3.631627,218.56,218.48,11.1962]
[1758607919929,3.631627,218.55,218.48,11.1962]
[1758607920130,3.631627,218.54,218.48,11.1962]
[1758607920436,11.8146,218.58,218.48,11.1962]
[1758607920626,3.63557075,218.57,218.48,11.1962]
[1758607920828,3.63557075,218.56,218.48,11.1962]
[1758607921124,3.63557075,218.55,218.48,11.1962]
[1758607921321,11.29557075,218.54,218.46,4.1168]
[1758607921526,3.63557075,218.53,218.46,4.1168]
[1758607921728,3.63557075,218.53,218.45,7.16]
[1758607921924,4.1149,218.56,218.48,4.1163]
[1758607922128,3.63874141,218.55,218.48,4.1163]
[1758607922326,3.63874141,218.54,218.45,10.93962937]
[1758607922529,3.63874141,218.53,218.45,7.16]
[1758607922829,7.66,218.57,218.46,7.16]
[1758607923028,3.63964206,218.56,218.46,7.16]
[1758607923338,3.63964206,218.55,218.48,7.16]
[1758607923539,7.66,218.61,218.48,7.16]
[1758607923834,3.63908713,218.6,218.48,7.16]
[1758607924041,3.63908713,218.59,218.51,11.2758]
[1758607924338,3.63908713,218.58,218.51,11.2758]
[1758607924536,3.63908713,218.57,218.51,11.2758]
[1758607924736,3.63908713,218.56,218.52,7.16]
[1758607924933,4.1144,218.59,218.51,7.16]
[1758607925125,7.66,218.57,218.48,4.1162]
[1758607925330,3.63909136,218.56,218.48,4.1162]
[1758607926941,7.75399136,218.56,218.48,4.1162]
[1758607927242,3.63909136,218.55,218.48,4.1162]
[1758607927440,3.63909136,218.54,218.48,4.1162]
[1758607927642,4.1149,218.56,218.47,7.16]
[1758607927841,3.62846083,218.55,218.47,7.16]
[1758607928143,3.62846083,218.54,218.47,11.2766]
[1758607928332,4.1149,218.56,218.47,11.2766]
[1758607928538,3.62957663,218.55,218.47,11.2766]
[1758607928729,3.62957663,218.54,218.47,11.2766]
[1758607928933,4.1149,218.56,218.47,11.2766]
[1758607929137,3.62957663,218.55,218.47,11.2766]
[1758607929439,3.62957663,218.54,218.47,11.2766]
[1758607929637,4.1149,218.56,218.47,11.2766]
[1758607929943,3.63002355,218.55,218.47,11.2766]
[1758607930137,3.63002355,218.54,218.47,11.2766]
[1758607930440,4.1149,218.56,218.47,11.2766]
[1758607930746,7.66,218.54,218.47,11.2766]
[1758607932735,11.7745,218.58,218.5,7.16]
[1758607932939,3.63179966,218.57,218.5,7.16]
[1758607933139,3.63179966,218.56,218.5,7.16]
[1758607933329,4.1141,218.61,218.5,7.16]
[1758607933531,3.63251707,218.6,218.5,7.16]
[1758607933736,3.63251707,218.59,218.51,3.77962937]
[1758607933937,7.66,218.62,218.53,7.16]
[1758607934138,3.63168275,218.61,218.53,7.16]
[1758607934339,3.63168275,218.6,218.53,7.16]
[1758607934541,7.66,218.62,218.53,7.16]
[1758607934737,3.63126266,218.61,218.53,7.16]
[1758607934938,3.63126266,218.6,218.55,4.115]
[1758607935143,109.76,218.69,218.56,7.16]
[1758607935342,7.66,218.67,218.56,7.16]
[1758607935542,3.63096008,218.66,218.56,7.16]
[1758607936544,7.29,218.65,218.56,7.16]
[1758607936752,3.63096008,218.64,218.56,7.16]
[1758607936938,7.29,218.62,218.56,7.16]
[1758607937243,7.29,218.6,218.56,7.16]
[1758607937445,3.63096008,218.59,218.56,7.16]
[1758607937640,7.29,218.6,218.52,7.64]
[1758607937947,3.63074177,218.59,218.52,7.64]
[1758607938143,7.29,218.6,218.52,7.64]
[1758607938439,3.63045808,218.59,218.52,7.64]
[1758607938637,7.29,218.6,218.52,7.64]
[1758607938638,3.63059693,218.58,218.52,7.64]
[1758607938840,7.29,218.6,218.52,7.64]
[1758607939044,3.630598,218.59,218.52,7.64]
[1758607939247,3.630598,218.58,218.49,7.89582937]
[1758607939434,3.630598,218.57,218.49,4.1162]
[1758607939641,11.05762755,218.6,218.49,4.1162]
[1758607939857,7.74525303,218.59,218.49,4.1162]
[1758607940038,3.63075303,218.58,218.49,4.1162]
[1758607940340,7.29,218.56,218.46,7.64]
[1758607940544,3.63075303,218.55,218.46,7.64]
[1758607941144,3.63075303,218.54,218.46,7.64]
[1758607941343,3.63075303,218.53,218.46,7.64]
[1758607941544,4.1146,218.58,218.47,4.1166]
[1758607941744,3.63150401,218.57,218.48,7.64]
[1758607941938,3.63150401,218.56,218.48,7.64]
[1758607942249,3.63134226,218.55,218.48,7.64]
[1758607942440,3.63134226,218.54,218.48,7.64]
[1758607942747,4.1146,218.58,218.48,7.64]
[1758607942945,4.1149,218.56,218.48,7.64]
[1758607943145,3.63146955,218.55,218.48,7.64]
[1758607943747,10.92146955,218.55,218.48,7.64]
[1758607943949,3.63146955,218.54,218.48,7.64]
[1758607944252,3.63146955,218.54,218.44,4.117]
[1758607944253,7.74676955,218.54,218.44,11.757]
[1758607944453,3.63146955,218.53,218.44,11.757]
[1758607944750,3.63146955,218.53,218.45,7.64]
[1758607944946,3.63146955,218.52,218.45,7.64]
[1758607945249,7.29,218.55,218.45,7.64]
[1758607945450,3.63163262,218.54,218.45,7.64]
[1758607945749,3.63163262,218.53,218.45,7.64]
[1758607946046,3.63163262,218.52,218.45,7.64]
[1758607946249,11.4051,218.55,218.45,7.64]
[1758607946549,3.6316409,218.54,218.45,7.64]
[1758607946741,3.6316409,218.53,218.45,7.64]
[1758607947049,3.6316409,218.52,218.45,7.64]
[1758607947248,4.1155,218.54,218.45,7.64]
[1758607947448,3.63151184,218.53,218.45,7.64]
[1758607947650,3.63151184,218.52,218.45,7.64]
[1758607947852,3.63151372,218.51,218.45,7.64]
[1758607948046,4.1157,218.52,218.45,7.64]
[1758607948252,3.63158616,218.51,218.45,7.64]
[1758607948549,4.1157,218.52,218.45,7.64]
[1758607948749,3.63139486,218.51,218.45,7.64]
[1758607949051,4.1157,218.52,218.45,7.64]
[1758607949251,3.63107331,218.51,218.45,7.64]
[1758607949457,7.29,218.53,218.45,7.64]
[1758607949755,3.63107009,218.52,218.45,7.64]
[1758607949947,3.63107009,218.51,218.45,7.64]
[1758607950146,7.29,218.53,218.45,7.64]
[1758607950356,3.63077795,218.52,218.45,7.64]
[1758607950554,3.63077795,218.51,218.45,7.64]
[1758607950751,11.4055,218.53,218.45,7.64]
[1758607950953,3.63077795,218.52,218.45,7.64]
[1758607951154,3.63077795,218.51,218.45,7.64]
[1758607951455,11.4055,218.53,218.45,7.64]
[1758607951748,3.63057933,218.52,218.45,7.64]
[1758607951955,3.63057933,218.51,218.45,7.64]
[1758607952154,11.4055,218.53,218.45,7.64]
[1758607952355,3.63041016,218.52,218.45,7.64]
[1758607952555,3.63041016,218.51,218.45,7.64]
[1758607952950,7.29,218.53,218.45,7.64]
[1758607953145,3.63041552,218.52,218.45,7.64]
[1758607953356,3.63041552,218.51,218.45,7.64]
[1758607953557,7.29,218.53,218.45,7.64]
[1758607953761,4.116,218.5,218.45,7.64]
[1758607953951,11.376,218.5,218.45,7.64]
[1758607954459,7.26,218.49,218.45,7.64]
[1758607955457,7.26,218.49,218.42,3.77962937]
[1758607955653,7.74698596,218.48,218.4,7.55]
[1758607955855,3.63062969,218.47,218.4,7.55]
[1758607956055,7.26,218.47,218.4,7.55]
[1758607956763,7.26,218.45,218.36,11.32962937]
[1758607956957,7.26,218.45,218.36,7.55]
[1758607957159,4.1176,218.42,218.36,7.55]
[1758607957558,7.26,218.42,218.36,7.55]
[1758607957764,4.1179,218.41,218.36,7.55]
[1758607957964,7.26,218.4,218.36,7.55]
[1758607958163,7.26,218.4,218.32,7.55]
[1758607958358,4.1181,218.39,218.32,7.55]
[1758607958566,11.02762755,218.4,218.32,7.55]
[1758607959465,3.76762755,218.37,218.27,7.55]
[1758607960059,7.26,218.38,218.27,7.55]
[1758607960266,68.48762755,218.43,218.3,7.55]
[1758607960463,3.61939857,218.42,218.3,7.55]
[1758607960667,7.73719857,218.41,218.31,4.1196]
[1758607960866,3.61939857,218.4,218.3,7.55]
[1758607961375,4.1178,218.41,218.3,7.55]
[1758607961573,3.6171973,218.4,218.3,7.55]
[1758607961770,4.1178,218.41,218.3,7.55]
[1758607961971,3.61719676,218.4,218.3,7.55]
[1758607962171,4.1178,218.41,218.3,7.55]
[1758607963070,4.1178,218.41,218.3,11.6698]
[1758607964875,7.26,218.4,218.3,7.55]
[1758607965878,4.1181,218.39,218.3,7.55]
[1758607966376,3.76762755,218.39,218.3,7.55]
[1758607966679,7.26,218.37,218.23,7.55]
[1758607967167,4.1189,218.35,218.23,4.121]
[1758607967372,3.76762755,218.36,218.24,7.55]
[1758607967967,119.7582,218.39,218.28,7.55]
[1758607968368,7.26,218.38,218.28,7.55]
[1758607968570,3.76762755,218.37,218.28,7.55]
[1758607968871,7.26,218.36,218.28,7.55]
[1758607969277,11.3793,218.33,218.23,7.55]
[1758607971480,4.1197,218.31,218.23,7.55]
[1758607972180,7.26,218.33,218.23,7.55]
[1758607973769,4.1194,218.32,218.23,7.55]
[1758607975280,4.1199,218.3,218.23,7.55]
[1758607976279,11.3799,218.3,218.23,7.55]
[1758607976585,2.41834186,218.28,218.21,4.1215]
[1758607976883,2.41834186,218.28,218.22,7.55]
[1758607983088,64.0753,218.34,218.13,7.3]
[1758607983089,2.41834186,218.24,218.13,7.3]
[1758607983283,2.41834186,218.24,218.15,7.3]
[1758607983887,2.41834186,218.24,218.18,7.3]
[1758607984583,4.1209,218.24,218.18,7.3]
[1758607984789,2.41834186,218.23,218.14,7.3]
[1758607985178,2.41834186,218.23,218.15,4.1225]
[1758607985786,7.41,218.25,218.13,64.1352]
[1758607985990,2.41834186,218.24,218.17,7.3]
[1758607986788,2.41834186,218.24,218.13,64.1352]
[1758607986789,2.41834186,218.29,218.2,7.3]
[1758607987788,2.41834186,218.29,218.21,4.1213]
[1758607988193,7.41,218.32,218.22,7.3]
[1758607988494,7.41,218.32,218.24,7.3]
[1758607988691,9.82834186,218.32,218.24,7.3]
[1758607989482,7.41,218.32,218.25,4.1207]
[1758607989684,2.41834186,218.33,218.26,7.3]
[1758607990584,2.41834186,218.31,218.26,7.3]
[1758607990782,2.41834186,218.31,218.24,7.3]
[1758607992787,2.41834186,218.31,218.24,11.4209]
[1758607992990,2.41834186,218.33,218.24,11.4209]
[1758607993188,3.62307116,218.32,218.24,11.4209]
[1758607993388,2.41834186,218.33,218.24,11.4209]
[1758607993689,3.62456229,218.32,218.24,11.4209]
[1758607993991,2.41834186,218.33,218.24,11.4209]
[1758607994185,3.62456229,218.32,218.24,11.4209]
[1758607994389,9.82834186,218.31,218.24,7.3]
[1758607994588,3.62628829,218.3,218.24,7.3]
[1758607995091,9.82834186,218.31,218.24,7.3]
[1758607995290,3.62838723,218.3,218.24,7.3]
[1758607995494,9.82834186,218.31,218.24,7.3]
[1758607995693,9.82834186,218.29,218.24,7.3]
[1758607996091,11.14838911,218.28,218.16,10.00834186]
[1758607996297,6.04673097,218.27,218.19,7.59]
[1758607996491,3.62838911,218.26,218.19,7.59]
[1758607996795,7.74898911,218.26,218.19,7.59]
[1758607996996,6.04673097,218.25,218.19,7.59]
[1758607997198,2.41834186,218.25,218.19,7.59]
[1758607998093,4.1206,218.26,218.19,7.59]
[1758607998300,3.63527727,218.25,218.19,7.59]
[1758607998494,3.63527727,218.24,218.17,11.7122]
[1758607998694,4.1206,218.26,218.18,7.59]
[1758607998900,3.63510324,218.25,218.18,7.59]
[1758607999202,3.63784574,218.24,218.18,7.59]
[1758607999497,4.1206,218.26,218.18,7.59]
[1758607999693,3.63784574,218.25,218.18,7.59]
[1758607999894,3.63784574,218.24,218.18,7.59]
[1758608000096,4.1206,218.26,218.18,7.59]
[1758608000294,3.64135402,218.25,218.18,7.59]
[1758608000495,3.64135402,218.24,218.18,7.59]
[1758608000696,3.64135402,218.23,218.17,7.59]
[1758608000896,4.1206,218.26,218.18,2.41834186]
[1758608001097,11.16118481,218.25,218.17,7.59]
[1758608001304,3.64118481,218.24,218.17,7.59]
[1758608001499,3.64118481,218.24,218.17,10.00834186]
[1758608002707,10.18042667,218.24,218.17,7.59]
[1758608002901,3.64118481,218.23,218.17,7.59]
[1758608004598,3.64118481,218.22,218.17,2.41834186]
[1758608004805,117.19834186,218.28,218.2,7.59]
[1758608005005,3.64731531,218.27,218.2,7.59]
[1758608005208,3.64731531,218.26,218.2,7.59]
[1758608005406,9.93834186,218.24,218.16,7.59]
[1758608005607,3.64731531,218.23,218.16,7.59]
[1758608006912,9.93834186,218.24,218.16,7.59]
[1758608007107,3.64899342,218.23,218.16,7.59]
[1758608007311,9.93834186,218.24,218.16,7.59]
[1758608007514,3.64972593,218.23,218.16,7.59]
[1758608007812,9.93834186,218.24,218.16,7.59]
[1758608008007,3.64972593,218.23,218.16,7.59]
[1758608008219,9.93834186,218.24,218.16,7.59]
[1758608008404,3.65059058,218.23,218.16,7.59]
[1758608008604,7.52,218.24,218.17,2.41834186]
[1758608008805,3.65059058,218.23,218.17,2.41834186]
[1758608009017,7.52,218.24,218.17,2.41834186]
[1758608009315,3.65063237,218.23,218.17,2.41834186]
[1758608009614,3.65063237,218.22,218.18,7.59]
[1758608009815,6.53874186,218.27,218.18,7.59]
[1758608010017,4.79712927,218.26,218.18,7.59]
[1758608010217,3.65158151,218.25,218.18,7.59]
[1758608010414,3.65158151,218.24,218.19,2.41834186]
[1758608010611,7.56,218.37,218.24,7.53]
[1758608010911,3.65159451,218.36,218.28,7.53]
[1758608011114,4.796788,218.35,218.29,2.41834186]
[1758608011320,4.796788,218.34,218.3,7.53]
[1758608011512,4.796788,218.33,218.3,7.53]
[1758608011816,3.65159451,218.32,218.3,7.53]
[1758608012015,3.65159451,218.31,218.28,7.53]
[1758608012216,3.62009877,218.3,218.26,7.53]
[1758608012512,7.56,218.33,218.26,7.53]
[1758608012710,3.62003396,218.32,218.26,7.53]
[1758608012911,3.62003396,218.31,218.25,2.41834186]
[1758608013209,3.62003396,218.3,218.26,7.53]
[1758608013514,7.56,218.33,218.26,7.53]
[1758608013713,3.62099008,218.32,218.26,7.53]
[1758608014012,3.62099008,218.31,218.25,2.41834186]
[1758608014313,3.62099008,218.3,218.26,7.53]
[1758608014519,4.1196,218.32,218.26,7.53]
[1758608014818,3.62127091,218.31,218.25,2.41834186]
[1758608015020,3.62127091,218.3,218.26,7.53]
[1758608015212,7.56,218.33,218.26,7.53]
[1758608015414,3.6212534,218.32,218.26,7.53]
[1758608015609,3.6212534,218.31,218.28,7.53]
[1758608015817,7.56,218.36,218.27,9.94834186]
[1758608016116,3.62116732,218.35,218.27,9.94834186]
[1758608016313,3.62116732,218.34,218.27,9.94834186]
[1758608016615,3.62116732,218.33,218.27,9.94834186]
[1758608016825,3.62116732,218.32,218.27,2.41834186]
[1758608017014,4.1189,218.35,218.27,9.94834186]
[1758608017216,3.64665023,218.34,218.3,7.53]
[1758608017417,3.64665023,218.33,218.3,7.53]
[1758608017616,3.64665023,218.32,218.3,7.53]
[1758608017919,7.56,218.34,218.3,7.53]
[1758608018107,3.64640957,218.33,218.29,2.41834186]
[1758608018314,7.56,218.42,218.32,7.53]
[1758608018514,3.64483324,218.41,218.33,2.41834186]
[1758608018716,3.64483324,218.4,218.33,2.41834186]
[1758608020010,3.64483324,218.4,218.36,7.53]
[1758608020215,26.46,218.43,218.36,7.53]
[1758608020417,3.64063032,218.42,218.36,9.94834186]
[1758608020712,3.64063032,218.41,218.37,7.53]
[1758608020917,3.64063032,218.4,218.37,7.53]
[1758608021116,26.46,218.43,218.37,7.53]
[1758608021323,3.63852656,218.42,218.36,2.41834186]
[1758608021523,3.63852656,218.41,218.34,2.41834186]
[1758608021725,34.02,218.43,218.34,2.41834186]
[1758608022020,3.63859686,218.42,218.34,2.41834186]
[1758608022225,3.63859686,218.41,218.36,2.41834186]
[1758608022415,34.02,218.43,218.36,2.41834186]
[1758608022615,3.63670803,218.42,218.36,2.41834186]
[1758608022817,71.6171,218.4,218.28,3.77962937]
[1758608023019,71.6171,218.4,218.19,64.1182]
[1758608023020,7.56,218.38,218.27,7.53]
[1758608023223,3.63670803,218.37,218.29,2.41834186]
[1758608023425,4.1187,218.36,218.28,2.41834186]
[1758608023628,3.63670803,218.35,218.28,2.41834186]
[1758608023924,4.1187,218.36,218.27,7.53]
[1758608024111,3.63746202,218.35,218.28,2.41834186]
[1758608024313,4.1187,218.36,218.28,2.41834186]
[1758608024515,3.63717741,218.35,218.28,2.41834186]
[1758608024719,4.1187,218.36,218.28,2.41834186]
[1758608024923,3.63710902,218.35,218.28,2.41834186]
[1758608025122,2.41834186,218.39,218.23,4.1211]
[1758608025325,2.41834186,218.33,218.22,7.53]
[1758608025513,11.19690098,218.32,218.22,7.53]
[1758608025713,3.63690098,218.31,218.22,9.94834186]
[1758608026221,4.1198,218.3,218.22,9.94834186]
[1758608027121,4.1202,218.28,218.22,7.53]
[1758608027925,7.56,218.3,218.22,7.53]
[1758608028126,7.56,218.3,218.23,2.41834186]
[1758608029222,7.56,218.3,218.22,7.53]
[1758608029223,10.17723315,218.29,218.22,7.53]
[1758608029423,6.53844186,218.29,218.22,7.53]
[1758608034621,4.1195,218.32,218.23,7.53]
[1758608034825,3.63910458,218.31,218.26,7.53]
[1758608035025,114.6,218.33,218.26,7.53]
[1758608035424,11.6783,218.38,218.28,2.41834186]
[1758608035623,3.63758613,218.37,218.29,7.53]
[1758608035825,3.63758613,218.36,218.29,7.53]
[1758608036023,11.6783,218.38,218.29,7.53]
[1758608036231,3.63749687,218.37,218.29,7.53]
[1758608036433,3.63749687,218.36,218.29,7.53]
[1758608036626,11.6783,218.38,218.29,7.53]
[1758608036823,3.63710322,218.37,218.29,7.53]
[1758608037019,3.63710322,218.36,218.29,7.53]
[1758608037226,11.6783,218.38,218.29,7.53]
[1758608037426,3.63672848,218.37,218.29,7.53]
[1758608037628,3.63672848,218.36,218.29,7.53]
[1758608037827,11.6783,218.38,218.29,7.53]
[1758608038021,3.63672794,218.37,218.29,7.53]
[1758608038333,3.63672794,218.36,218.29,7.53]
[1758608038525,11.6783,218.38,218.29,11.6499]
[1758608038722,11.6783,218.38,218.29,7.53]
[1758608038723,4.1187,218.36,218.29,7.53]
[1758608038928,11.19662574,218.35,218.25,7.53]
[1758608039127,7.56,218.35,218.25,7.53]
[1758608039631,4.1191,218.34,218.25,11.6507]
[1758608041530,4.1191,218.34,218.26,7.52]
[1758608042328,4.1186,218.37,218.28,7.52]
[1758608043124,7.27,218.39,218.3,7.52]
[1758608043427,4.37,218.4,218.31,7.52]
[1758608044730,4.37,218.4,218.32,3.77509755]
[1758608044929,4.37,218.4,218.33,4.1192]
[1758608046526,4.37,218.4,218.31,11.29509755]
[1758608047931,4.37,218.4,218.31,7.52]
[1758608048131,7.27,218.38,218.31,7.52]
[1758608048838,4.1186,218.37,218.31,7.52]
[1758608049934,4.1186,218.37,218.27,4.1202]
[1758608050130,4.1186,218.37,218.28,7.52]
[1758608052336,11.3889,218.35,218.28,7.52]
[1758608057438,4.1192,218.34,218.28,7.52]
[1758608062044,7.27,218.35,218.28,7.52]
[1758608062337,3.5900395,218.34,218.28,7.52]
[1758608062546,7.27,218.35,218.28,7.52]
[1758608062729,3.59005963,218.34,218.28,7.52]
[1758608063029,7.27,218.35,218.28,7.52]
[1758608063232,3.59005852,218.34,218.28,7.52]
[1758608063435,7.27,218.35,218.28,7.52]
[1758608063739,3.59008636,218.34,218.28,7.52]
[1758608063938,7.27,218.35,218.28,7.52]
[1758608064140,3.59008636,218.34,218.28,7.52]
[1758608064339,7.27,218.35,218.28,7.52]
[1758608064539,3.59018754,218.34,218.28,7.52]
[1758608064747,7.27,218.35,218.28,7.52]
[1758608065048,3.59018754,218.34,218.28,7.52]
[1758608065246,11.3889,218.35,218.28,7.52]
[1758608065440,3.59073021,218.34,218.28,7.52]
[1758608065640,7.42,218.32,218.28,7.52]
[1758608066745,7.42,218.32,218.26,7.19]
[1758608067844,3.59243573,218.31,218.22,4.1211]
[1758608068050,11.01278837,218.3,218.22,7.19]
[1758608068253,11.54,218.3,218.22,7.19]
[1758608068952,4.1202,218.29,218.22,7.19]
[1758608069452,64.0782,218.33,218.22,7.19]
[1758608069453,4.1204,218.27,218.22,7.19]
[1758608069643,11.01346565,218.26,218.18,7.19]
[1758608069846,3.59346565,218.25,218.18,7.19]
[1758608071244,11.5407,218.26,218.18,7.19]
[1758608072455,7.42,218.26,218.18,7.19]
[1758608073147,90.7301,218.29,218.19,7.43]
[1758608073354,3.59041151,218.28,218.19,7.43]
[1758608073547,3.59041151,218.27,218.19,7.43]
[1758608073754,125.7301,218.29,218.19,7.43]
[1758608073957,3.5899039,218.28,218.19,7.43]
[1758608074152,7.39,218.26,218.19,7.43]
[1758608074757,11.5107,218.26,218.19,7.43]
[1758608075649,7.39,218.26,218.19,7.43]
[1758608076044,12.49,218.25,218.19,7.43]
[1758608080256,7.39,218.24,218.14,11.22201995]
[1758608080557,12.49,218.25,218.15,7.43]
[1758608081255,12.49,218.25,218.17,7.43]
[1758608081458,12.49,218.25,218.2,7.43]
[1758608081860,12.49,218.25,218.21,4.1215]
[1758608082158,12.49,218.25,218.22,7.43]
[1758608082354,12.49,218.25,218.22,4.1211]